[Event "Live Chess"]
[Site "Chess.com"]
[Date "2021.02.06"]
[Round "2"]
[White "pranshikku"]
[Black "yeetacopter2"]
[Result "1-0"]
[CurrentPosition "8/R5R1/6k1/pPp2pPp/P1n4P/8/5K2/8 b - -"]
[Timezone "UTC"]
[ECO "D06"]
[ECOUrl "https://www.chess.com/openings/Queens-Gambit-Declined-Marshall-Defense-3.Nc3"]
[UTCDate "2021.02.06"]
[UTCTime "19:03:41"]
[WhiteElo "1224"]
[BlackElo "1022"]
[TimeControl "1200+10"]
[Termination "pranshikku won by checkmate"]
[StartTime "19:03:41"]
[EndDate "2021.02.06"]
[EndTime "19:25:36"]
[Link "https://www.chess.com/live/game/6472155759"]

1. d4 {[%clk 0:20:06.6]} 1... d5 {[%clk 0:20:06.6]} 2. c4 {[%clk 0:20:13.4]} 2... Nf6 {[%clk 0:20:14.3]} 3. Nc3 {[%clk 0:20:18.1]} 3... Bf5 {[%clk 0:20:16.1]} 4. Bf4 {[%clk 0:20:25.4]} 4... e6 {[%clk 0:20:22.5]} 5. e3 {[%clk 0:20:32.7]} 5... Bb4 {[%clk 0:20:29.5]} 6. a3 {[%clk 0:20:33.7]} 6... Ba5 {[%clk 0:20:37.2]} 7. b4 {[%clk 0:20:38.3]} 7... Bb6 {[%clk 0:20:41.7]} 8. c5 {[%clk 0:20:46]} 8... Bxc5 {[%clk 0:19:57.8]} 9. dxc5 {[%clk 0:20:52.2]} 9... O-O {[%clk 0:19:51.4]} 10. Bd3 {[%clk 0:20:54.4]} 10... Bg4 {[%clk 0:19:43.1]} 11. Nf3 {[%clk 0:20:57.6]} 11... Nc6 {[%clk 0:19:44.6]} 12. h3 {[%clk 0:21:04.9]} 12... Bh5 {[%clk 0:19:50.2]} 13. g4 {[%clk 0:21:13]} 13... Bg6 {[%clk 0:19:58.1]} 14. Bxg6 {[%clk 0:21:20.6]} 14... fxg6 {[%clk 0:19:56.8]} 15. Rg1 {[%clk 0:21:12.4]} 15... h5 {[%clk 0:19:46.2]} 16. g5 {[%clk 0:21:18.9]} 16... Nh7 {[%clk 0:19:49.6]} 17. b5 {[%clk 0:21:01]} 17... Na5 {[%clk 0:19:41.7]} 18. Nd2 {[%clk 0:20:43.6]} 18... Rf5 {[%clk 0:19:37.6]} 19. h4 {[%clk 0:20:25.2]} 19... d4 {[%clk 0:19:25.8]} 20. Ne2 {[%clk 0:20:10.2]} 20... dxe3 {[%clk 0:19:13.9]} 21. Bxe3 {[%clk 0:20:15.2]} 21... Qf8 {[%clk 0:18:42.1]} 22. Rf1 {[%clk 0:20:19.1]} 22... Rd8 {[%clk 0:18:38.6]} 23. Qc2 {[%clk 0:20:12]} 23... b6 {[%clk 0:17:25.6]} 24. Nd4 {[%clk 0:20:14.9]} 24... Rxc5 {[%clk 0:17:11.1]} 25. Qd3 {[%clk 0:20:01.9]} 25... e5 {[%clk 0:16:45.6]} 26. Ne6 {[%clk 0:20:01.9]} 26... Rxd3 {[%clk 0:16:44.8]} 27. Nxf8 {[%clk 0:20:10.9]} 27... Kxf8 {[%clk 0:16:54]} 28. Bxc5+ {[%clk 0:20:20]} 28... Kg8 {[%clk 0:17:00.9]} 29. Bb4 {[%clk 0:20:21.7]} 29... c5 {[%clk 0:16:33.4]} 30. Bxa5 {[%clk 0:20:21.4]} 30... bxa5 {[%clk 0:16:42.2]} 31. a4 {[%clk 0:20:23.7]} 31... Nf8 {[%clk 0:16:47.1]} 32. Nc4 {[%clk 0:20:22.5]} 32... Rd4 {[%clk 0:16:27.2]} 33. Nxe5 {[%clk 0:20:27]} 33... Re4+ {[%clk 0:16:35.2]} 34. Kd2 {[%clk 0:20:26.3]} 34... Rxe5 {[%clk 0:16:43.9]} 35. Rae1 {[%clk 0:20:31.5]} 35... Rd5+ {[%clk 0:16:50]} 36. Kc3 {[%clk 0:20:36.9]} 36... Nd7 {[%clk 0:16:32]} 37. Re7 {[%clk 0:20:31]} 37... Rd4 {[%clk 0:15:54.7]} 38. f4 {[%clk 0:20:25.2]} 38... Nb6 {[%clk 0:15:35.7]} 39. Rxa7 {[%clk 0:19:54.2]} 39... Rc4+ {[%clk 0:15:39.2]} 40. Kd2 {[%clk 0:19:51.9]} 40... Rd4+ {[%clk 0:15:42.9]} 41. Ke3 {[%clk 0:19:55.1]} 41... Nc4+ {[%clk 0:15:41.6]} 42. Ke2 {[%clk 0:19:39.9]} 42... Rd2+ {[%clk 0:15:44]} 43. Ke1 {[%clk 0:19:36.3]} 43... Ra2 {[%clk 0:15:25]} 44. f5 {[%clk 0:19:17.5]} 44... Ra1+ {[%clk 0:15:25.4]} 45. Ke2 {[%clk 0:19:20.7]} 45... Ra2+ {[%clk 0:15:33.6]} 46. Ke1 {[%clk 0:19:26.9]} 46... Ra1+ {[%clk 0:15:42.5]} 47. Kf2 {[%clk 0:19:35.3]} 47... gxf5 {[%clk 0:15:50.9]} 48. Rxa1 {[%clk 0:19:43.6]} 48... Kh7 {[%clk 0:15:48.6]} 49. Re1 {[%clk 0:19:46.8]} 49... Kg6 {[%clk 0:15:31.2]} 50. Re6+ {[%clk 0:19:48.2]} 50... Kh7 {[%clk 0:15:36.7]} 51. Ree7 {[%clk 0:19:51.6]} 51... Kg6 {[%clk 0:15:44.6]} 52. Rxg7# {[%clk 0:19:56.4]} 1-0

[Event "Live Chess"]
[Site "Chess.com"]
[Date "2021.02.06"]
[Round "2"]
[White "Capawesome18"]
[Black "RobynoDude"]
[Result "0-1"]
[CurrentPosition "7r/6k1/p3pp2/6p1/2pP3P/P1P2q2/7R/5rK1 w - -"]
[Timezone "UTC"]
[ECO "D38"]
[ECOUrl "https://www.chess.com/openings/Queens-Gambit-Declined-Ragozin-Defense"]
[UTCDate "2021.02.06"]
[UTCTime "19:01:00"]
[WhiteElo "1014"]
[BlackElo "1417"]
[TimeControl "1200+10"]
[Termination "RobynoDude won by checkmate"]
[StartTime "19:01:00"]
[EndDate "2021.02.06"]
[EndTime "19:19:35"]
[Link "https://www.chess.com/live/game/6472129015"]

1. d4 {[%clk 0:20:08.6]} 1... d5 {[%clk 0:20:07.5]} 2. c4 {[%clk 0:20:16.8]} 2... e6 {[%clk 0:20:15.9]} 3. Nc3 {[%clk 0:20:24.8]} 3... Nf6 {[%clk 0:20:23.1]} 4. Nf3 {[%clk 0:20:30]} 4... Bb4 {[%clk 0:20:31.5]} 5. Bd2 {[%clk 0:20:35.3]} 5... O-O {[%clk 0:20:39.2]} 6. a3 {[%clk 0:20:43.8]} 6... Bxc3 {[%clk 0:20:44.1]} 7. Bxc3 {[%clk 0:20:50.6]} 7... Bd7 {[%clk 0:20:45.2]} 8. e3 {[%clk 0:20:56.6]} 8... a6 {[%clk 0:20:46.8]} 9. Be2 {[%clk 0:21:04.4]} 9... Ne4 {[%clk 0:20:50.4]} 10. O-O {[%clk 0:20:58.1]} 10... Qf6 {[%clk 0:20:51.5]} 11. Bd3 {[%clk 0:20:56.1]} 11... b5 {[%clk 0:20:46.8]} 12. Ne5 {[%clk 0:20:50.7]} 12... Nxc3 {[%clk 0:20:15.1]} 13. bxc3 {[%clk 0:20:56.2]} 13... bxc4 {[%clk 0:19:33.7]} 14. Bc2 {[%clk 0:21:03.6]} 14... c5 {[%clk 0:19:36.1]} 15. Qb1 {[%clk 0:21:03.1]} 15... g6 {[%clk 0:18:54.4]} 16. Qb7 {[%clk 0:20:16.2]} 16... Nc6 {[%clk 0:17:41.4]} 17. Nxd7 {[%clk 0:20:22.4]} 17... Qe7 {[%clk 0:17:30]} 18. Qxc6 {[%clk 0:20:16.7]} 18... Rfc8 {[%clk 0:17:20]} 19. Qa4 {[%clk 0:20:14.8]} 19... Rc7 {[%clk 0:15:41]} 20. Nxc5 {[%clk 0:20:06.9]} 20... Qg5 {[%clk 0:15:35.7]} 21. g3 {[%clk 0:19:58.3]} 21... h5 {[%clk 0:15:36.4]} 22. Qa5 {[%clk 0:19:41.8]} 22... Rca7 {[%clk 0:15:22.8]} 23. e4 {[%clk 0:19:31.6]} 23... h4 {[%clk 0:15:11.4]} 24. Bd1 {[%clk 0:19:02.9]} 24... dxe4 {[%clk 0:14:46.8]} 25. Nxe4 {[%clk 0:19:09]} 25... Qxa5 {[%clk 0:14:51.9]} 26. Bf3 {[%clk 0:18:56]} 26... Qf5 {[%clk 0:14:36.1]} 27. Nd6 {[%clk 0:18:50]} 27... Qxf3 {[%clk 0:14:22.4]} 28. h3 {[%clk 0:18:32.3]} 28... hxg3 {[%clk 0:14:25.5]} 29. fxg3 {[%clk 0:18:40.5]} 29... Qxg3+ {[%clk 0:14:33.4]} 30. Kh1 {[%clk 0:18:48.5]} 30... Qxd6 {[%clk 0:14:41]} 31. h4 {[%clk 0:18:52.9]} 31... Kg7 {[%clk 0:14:44.6]} 32. Rg1 {[%clk 0:18:57.4]} 32... f6 {[%clk 0:14:51.3]} 33. Rg2 {[%clk 0:19:03.9]} 33... g5 {[%clk 0:14:59.6]} 34. Rag1 {[%clk 0:19:08.3]} 34... Rh8 {[%clk 0:15:07.8]} 35. Rh2 {[%clk 0:19:07.1]} 35... Qd5+ {[%clk 0:15:05.9]} 36. Rgg2 {[%clk 0:19:15.1]} 36... Rb7 {[%clk 0:15:15]} 37. Kg1 {[%clk 0:19:13.3]} 37... Qf3 {[%clk 0:15:22.3]} 38. Rf2 {[%clk 0:19:07.9]} 38... Rb1+ {[%clk 0:15:23]} 39. Rf1 {[%clk 0:19:12.1]} 39... Rxf1# {[%clk 0:15:32.9]} 0-1

[Event "Live Chess"]
[Site "Chess.com"]
[Date "2021.02.06"]
[Round "2"]
[White "jasjas08"]
[Black "nextspacejl"]
[Result "1-0"]
[CurrentPosition "r2qk3/2pn2p1/p1Q4p/1p2P3/1P6/P1N4P/2P3P1/3R1RK1 b - -"]
[Timezone "UTC"]
[ECO "C55"]
[ECOUrl "https://www.chess.com/openings/Italian-Game-Anti-Fried-Liver-Defense"]
[UTCDate "2021.02.06"]
[UTCTime "19:01:07"]
[WhiteElo "1218"]
[BlackElo "1106"]
[TimeControl "1200+10"]
[Termination "jasjas08 won by resignation"]
[StartTime "19:01:07"]
[EndDate "2021.02.06"]
[EndTime "19:07:14"]
[Link "https://www.chess.com/live/game/6472129568"]

1. e4 {[%clk 0:20:08.9]} 1... e5 {[%clk 0:20:05.4]} 2. Nf3 {[%clk 0:20:07.2]} 2... Nc6 {[%clk 0:20:13.9]} 3. Bc4 {[%clk 0:20:03.5]} 3... h6 {[%clk 0:20:20.1]} 4. d3 {[%clk 0:20:06.6]} 4... Nf6 {[%clk 0:20:25.6]} 5. Nc3 {[%clk 0:20:06.9]} 5... Bb4 {[%clk 0:20:32.5]} 6. a3 {[%clk 0:20:10]} 6... Ba5 {[%clk 0:20:36.2]} 7. b4 {[%clk 0:20:11]} 7... Bb6 {[%clk 0:20:42.9]} 8. Be3 {[%clk 0:20:06.9]} 8... Bxe3 {[%clk 0:20:47.6]} 9. fxe3 {[%clk 0:20:15.2]} 9... d6 {[%clk 0:20:56.2]} 10. O-O {[%clk 0:20:20.9]} 10... Bg4 {[%clk 0:21:04.9]} 11. h3 {[%clk 0:20:15.4]} 11... Bxf3 {[%clk 0:21:11.4]} 12. Qxf3 {[%clk 0:20:22.8]} 12... O-O {[%clk 0:20:59.6]} 13. Rad1 {[%clk 0:20:07.1]} 13... a6 {[%clk 0:20:36.5]} 14. d4 {[%clk 0:20:01.3]} 14... exd4 {[%clk 0:20:41.4]} 15. exd4 {[%clk 0:20:08]} 15... b5 {[%clk 0:20:48.3]} 16. Bb3 {[%clk 0:20:11.2]} 16... Re8 {[%clk 0:20:36.3]} 17. e5 {[%clk 0:19:55.3]} 17... dxe5 {[%clk 0:20:41.6]} 18. dxe5 {[%clk 0:20:03.4]} 18... Nd7 {[%clk 0:20:49.3]} 19. Bxf7+ {[%clk 0:19:59.3]} 19... Kf8 {[%clk 0:20:54.7]} 20. Bxe8+ {[%clk 0:20:07.6]} 20... Kxe8 {[%clk 0:21:03.4]} 21. Qxc6 {[%clk 0:20:05.7]} 1-0

[Event "Live Chess"]
[Site "Chess.com"]
[Date "2021.02.06"]
[Round "2"]
[White "mip67"]
[Black "SwirlPawn"]
[Result "0-1"]
[CurrentPosition "8/5p1p/6pk/5p2/1p5K/5PP1/8/2n4q w - -"]
[Timezone "UTC"]
[ECO "B54"]
[ECOUrl "https://www.chess.com/openings/Sicilian-Defense-Open-Variation"]
[UTCDate "2021.02.06"]
[UTCTime "19:01:02"]
[WhiteElo "562"]
[BlackElo "927"]
[TimeControl "1200+10"]
[Termination "SwirlPawn won by checkmate"]
[StartTime "19:01:02"]
[EndDate "2021.02.06"]
[EndTime "19:12:02"]
[Link "https://www.chess.com/live/game/6472130281"]

1. e4 {[%clk 0:20:10]} 1... c5 {[%clk 0:20:03]} 2. Nf3 {[%clk 0:20:16]} 2... d6 {[%clk 0:20:09.4]} 3. d4 {[%clk 0:20:24.6]} 3... cxd4 {[%clk 0:20:17.5]} 4. Nxd4 {[%clk 0:20:33]} 4... a6 {[%clk 0:20:21.9]} 5. Nc3 {[%clk 0:20:41.5]} 5... Nf6 {[%clk 0:20:28.3]} 6. Bg5 {[%clk 0:20:45.6]} 6... g6 {[%clk 0:20:18.2]} 7. Bxf6 {[%clk 0:20:53]} 7... exf6 {[%clk 0:20:26.5]} 8. Nf3 {[%clk 0:20:58.6]} 8... Bg7 {[%clk 0:20:31.4]} 9. Nd5 {[%clk 0:21:01.6]} 9... O-O {[%clk 0:20:35.1]} 10. Bc4 {[%clk 0:21:05]} 10... b5 {[%clk 0:20:39.5]} 11. Bb3 {[%clk 0:21:05.7]} 11... Nd7 {[%clk 0:20:25.7]} 12. O-O {[%clk 0:21:13.2]} 12... Bb7 {[%clk 0:20:32]} 13. Nc3 {[%clk 0:21:17.5]} 13... Nc5 {[%clk 0:20:26.8]} 14. Bd5 {[%clk 0:21:20.9]} 14... Bxd5 {[%clk 0:19:53.3]} 15. exd5 {[%clk 0:21:26.8]} 15... f5 {[%clk 0:19:45.4]} 16. Qc1 {[%clk 0:21:12.5]} 16... Bxc3 {[%clk 0:19:44.4]} 17. bxc3 {[%clk 0:21:20.2]} 17... Ne4 {[%clk 0:19:50.4]} 18. Qa3 {[%clk 0:21:12.3]} 18... Qb6 {[%clk 0:19:41.7]} 19. Nd4 {[%clk 0:21:15.8]} 19... Qc5 {[%clk 0:19:28.2]} 20. Qxc5 {[%clk 0:21:18.9]} 20... dxc5 {[%clk 0:19:34.7]} 21. Nc6 {[%clk 0:21:25.9]} 21... Nxc3 {[%clk 0:19:36.2]} 22. Rae1 {[%clk 0:21:23.5]} 22... Nxd5 {[%clk 0:19:38.2]} 23. Rd1 {[%clk 0:21:20.8]} 23... Nc3 {[%clk 0:19:41]} 24. Rd7 {[%clk 0:21:23.9]} 24... Nxa2 {[%clk 0:19:30.1]} 25. Ne7+ {[%clk 0:21:32.1]} 25... Kg7 {[%clk 0:19:36.1]} 26. Rc7 {[%clk 0:21:26.5]} 26... Kf6 {[%clk 0:19:34.3]} 27. Nd5+ {[%clk 0:21:20.4]} 27... Kg7 {[%clk 0:19:14]} 28. Rxc5 {[%clk 0:21:25.9]} 28... Rac8 {[%clk 0:19:10.9]} 29. Rxc8 {[%clk 0:21:30.5]} 29... Rxc8 {[%clk 0:19:16.9]} 30. Nb6 {[%clk 0:21:35.7]} 30... Rxc2 {[%clk 0:19:22.5]} 31. Nd5 {[%clk 0:21:39.2]} 31... a5 {[%clk 0:19:27.9]} 32. Rb1 {[%clk 0:21:47.3]} 32... b4 {[%clk 0:19:35]} 33. Ne3 {[%clk 0:21:52]} 33... Rc1+ {[%clk 0:19:37.9]} 34. Rxc1 {[%clk 0:21:59.3]} 34... Nxc1 {[%clk 0:19:47.8]} 35. Nc4 {[%clk 0:22:01.7]} 35... a4 {[%clk 0:19:55.3]} 36. g3 {[%clk 0:22:08]} 36... a3 {[%clk 0:20:02.7]} 37. Nd2 {[%clk 0:22:14.2]} 37... a2 {[%clk 0:20:08.2]} 38. h4 {[%clk 0:22:21.7]} 38... a1=Q {[%clk 0:20:15.9]} 39. h5 {[%clk 0:22:30.6]} 39... Qc3 {[%clk 0:20:20.8]} 40. h6+ {[%clk 0:22:38.1]} 40... Kxh6 {[%clk 0:20:27.8]} 41. Ne4 {[%clk 0:22:46.2]} 41... Qe1+ {[%clk 0:20:33.6]} 42. Kg2 {[%clk 0:22:53.4]} 42... Qxe4+ {[%clk 0:20:42.8]} 43. f3 {[%clk 0:23:02.2]} 43... Qe2+ {[%clk 0:20:49.2]} 44. Kh3 {[%clk 0:23:10.1]} 44... Qf1+ {[%clk 0:20:56.8]} 45. Kh4 {[%clk 0:23:18.3]} 45... Qh1# {[%clk 0:21:04.6]} 0-1

[Event "Live Chess"]
[Site "Chess.com"]
[Date "2021.02.06"]
[Round "2"]
[White "andrewaballantyne"]
[Black "RibhavV2018"]
[Result "1-0"]
[CurrentPosition "8/8/8/8/8/3K4/8/Q2k4 b - -"]
[Timezone "UTC"]
[ECO "C54"]
[ECOUrl "https://www.chess.com/openings/Giuoco-Piano-Game-Center-Attack-Greco-Attack...8.O-O-Nxc3-9.bxc3-Bxc3"]
[UTCDate "2021.02.06"]
[UTCTime "19:01:08"]
[WhiteElo "1366"]
[BlackElo "1230"]
[TimeControl "1200+10"]
[Termination "andrewaballantyne won by checkmate"]
[StartTime "19:01:08"]
[EndDate "2021.02.06"]
[EndTime "19:22:13"]
[Link "https://www.chess.com/live/game/6472131492"]

1. e4 {[%clk 0:20:02]} 1... e5 {[%clk 0:19:55]} 2. Nf3 {[%clk 0:20:08.3]} 2... Nc6 {[%clk 0:20:01.6]} 3. Bc4 {[%clk 0:20:14.1]} 3... Bc5 {[%clk 0:20:08.2]} 4. c3 {[%clk 0:20:20.4]} 4... Nf6 {[%clk 0:19:57.1]} 5. d4 {[%clk 0:20:26.9]} 5... exd4 {[%clk 0:20:04.6]} 6. cxd4 {[%clk 0:20:35.5]} 6... Bb4+ {[%clk 0:20:14.1]} 7. Nc3 {[%clk 0:20:42.8]} 7... Nxe4 {[%clk 0:20:20.6]} 8. O-O {[%clk 0:20:50.9]} 8... Nxc3 {[%clk 0:20:27.3]} 9. bxc3 {[%clk 0:20:58]} 9... Bxc3 {[%clk 0:20:35.6]} 10. Rb1 {[%clk 0:20:03.3]} 10... O-O {[%clk 0:20:43.5]} 11. Qd3 {[%clk 0:19:51.6]} 11... Bb4 {[%clk 0:20:01.1]} 12. d5 {[%clk 0:19:33.5]} 12... Na5 {[%clk 0:19:51.5]} 13. Rxb4 {[%clk 0:19:22.9]} 13... c6 {[%clk 0:19:09.9]} 14. dxc6 {[%clk 0:19:08.2]} 14... Nxc4 {[%clk 0:19:12.3]} 15. Rxc4 {[%clk 0:19:08.8]} 15... d5 {[%clk 0:19:20.3]} 16. Rc5 {[%clk 0:18:59.7]} 16... bxc6 {[%clk 0:19:16.6]} 17. Rxc6 {[%clk 0:18:58.6]} 17... Bb7 {[%clk 0:19:24.8]} 18. Rc5 {[%clk 0:18:55.5]} 18... Qb6 {[%clk 0:18:44.2]} 19. Ba3 {[%clk 0:18:28.5]} 19... Rfc8 {[%clk 0:18:39.8]} 20. Rb5 {[%clk 0:17:26.6]} 20... Ba6 {[%clk 0:18:22.6]} 21. Rxb6 {[%clk 0:17:23.5]} 21... Bxd3 {[%clk 0:18:29.4]} 22. Rd6 {[%clk 0:16:41]} 22... Bxf1 {[%clk 0:18:16.8]} 23. Kxf1 {[%clk 0:16:48.1]} 23... Rd8 {[%clk 0:18:18]} 24. Rxd8+ {[%clk 0:16:29.2]} 24... Rxd8 {[%clk 0:18:24.1]} 25. Bc5 {[%clk 0:16:25.2]} 25... a5 {[%clk 0:18:28.7]} 26. Ke2 {[%clk 0:16:23.9]} 26... f6 {[%clk 0:18:35.3]} 27. Kd3 {[%clk 0:16:26.3]} 27... Kf7 {[%clk 0:18:43]} 28. Nd4 {[%clk 0:16:14.3]} 28... Rb8 {[%clk 0:18:16.9]} 29. Nc6 {[%clk 0:15:58.1]} 29... Rb2 {[%clk 0:18:19.2]} 30. a3 {[%clk 0:15:42.5]} 30... a4 {[%clk 0:18:10.3]} 31. Nb4 {[%clk 0:14:53.4]} 31... Ke6 {[%clk 0:18:02.2]} 32. g3 {[%clk 0:14:47.7]} 32... h6 {[%clk 0:18:01.6]} 33. Ke3 {[%clk 0:14:37.4]} 33... Ke5 {[%clk 0:18:03.2]} 34. Nd3+ {[%clk 0:14:28.8]} 34... Kf5 {[%clk 0:17:55.9]} 35. Nxb2 {[%clk 0:14:36.5]} 35... Kg4 {[%clk 0:18:03.3]} 36. h4 {[%clk 0:14:40.6]} 36... g5 {[%clk 0:18:08.5]} 37. hxg5 {[%clk 0:14:46.3]} 37... fxg5 {[%clk 0:18:17.3]} 38. Nxa4 {[%clk 0:14:53.9]} 38... h5 {[%clk 0:18:25.9]} 39. Be7 {[%clk 0:14:58.9]} 39... h4 {[%clk 0:18:28.1]} 40. gxh4 {[%clk 0:15:06.5]} 40... gxh4 {[%clk 0:18:38]} 41. Bxh4 {[%clk 0:15:14.1]} 41... Kxh4 {[%clk 0:18:47.9]} 42. Kd4 {[%clk 0:15:22.6]} 42... Kg4 {[%clk 0:18:45.6]} 43. Kxd5 {[%clk 0:15:32.5]} 43... Kf3 {[%clk 0:18:54.6]} 44. Nc3 {[%clk 0:15:40.1]} 44... Kxf2 {[%clk 0:19:03.4]} 45. a4 {[%clk 0:15:49.2]} 45... Ke3 {[%clk 0:19:12.8]} 46. a5 {[%clk 0:15:58.5]} 46... Kd3 {[%clk 0:19:22.3]} 47. a6 {[%clk 0:16:07.7]} 47... Kxc3 {[%clk 0:19:31.8]} 48. a7 {[%clk 0:16:17.2]} 48... Kb4 {[%clk 0:19:37.3]} 49. a8=Q {[%clk 0:16:27.1]} 49... Kb3 {[%clk 0:19:44.7]} 50. Kd4 {[%clk 0:16:31.9]} 50... Kc2 {[%clk 0:19:48.8]} 51. Qa2+ {[%clk 0:16:37.1]} 51... Kc1 {[%clk 0:19:52.8]} 52. Kd3 {[%clk 0:16:41.9]} 52... Kd1 {[%clk 0:20:00.2]} 53. Qa1# {[%clk 0:16:51.4]} 1-0

[Event "Live Chess"]
[Site "Chess.com"]
[Date "2021.02.06"]
[Round "2"]
[White "Shrihan98316"]
[Black "adichi"]
[Result "0-1"]
[CurrentPosition "3r1k2/pb1Prppp/1p6/1Q2b3/2B2P2/7P/PP4q1/R3RK2 w - -"]
[Timezone "UTC"]
[ECO "C00"]
[ECOUrl "https://www.chess.com/openings/French-Defense-Knight-Variation-2...d5"]
[UTCDate "2021.02.06"]
[UTCTime "19:01:23"]
[WhiteElo "833"]
[BlackElo "1430"]
[TimeControl "1200+10"]
[Termination "adichi won by checkmate"]
[StartTime "19:01:23"]
[EndDate "2021.02.06"]
[EndTime "19:23:51"]
[Link "https://www.chess.com/live/game/6472132309"]

1. e4 {[%clk 0:20:01.3]} 1... e6 {[%clk 0:20:06.9]} 2. Nf3 {[%clk 0:20:07.7]} 2... d5 {[%clk 0:20:13.1]} 3. exd5 {[%clk 0:20:15]} 3... exd5 {[%clk 0:20:22.6]} 4. c4 {[%clk 0:20:22.9]} 4... c6 {[%clk 0:20:06.1]} 5. cxd5 {[%clk 0:20:29.5]} 5... cxd5 {[%clk 0:20:14.3]} 6. Nc3 {[%clk 0:20:36.6]} 6... Nf6 {[%clk 0:20:21.3]} 7. d4 {[%clk 0:20:40.1]} 7... Bd6 {[%clk 0:20:28.6]} 8. Qa4+ {[%clk 0:20:20.2]} 8... Nc6 {[%clk 0:20:14.4]} 9. Bg5 {[%clk 0:20:23.3]} 9... O-O {[%clk 0:20:17.8]} 10. Bxf6 {[%clk 0:20:31.7]} 10... Qxf6 {[%clk 0:19:30.9]} 11. Nxd5 {[%clk 0:20:37.9]} 11... Re8+ {[%clk 0:19:27.4]} 12. Be2 {[%clk 0:20:43.1]} 12... Qe6 {[%clk 0:18:44.8]} 13. O-O {[%clk 0:20:31]} 13... Qxd5 {[%clk 0:17:56]} 14. Bc4 {[%clk 0:19:42.4]} 14... Qa5 {[%clk 0:17:11.9]} 15. Qb3 {[%clk 0:19:27.6]} 15... Qf5 {[%clk 0:16:16.4]} 16. d5 {[%clk 0:19:06.4]} 16... Ne5 {[%clk 0:15:14.6]} 17. Nxe5 {[%clk 0:19:01.7]} 17... Bxe5 {[%clk 0:14:06.8]} 18. Rfe1 {[%clk 0:18:38.3]} 18... b6 {[%clk 0:13:40.9]} 19. Qb5 {[%clk 0:18:26.4]} 19... Bb7 {[%clk 0:12:57.3]} 20. h3 {[%clk 0:18:01.6]} 20... Rad8 {[%clk 0:11:57.8]} 21. d6 {[%clk 0:17:45.7]} 21... Qg5 {[%clk 0:11:14.6]} 22. g3 {[%clk 0:17:19.3]} 22... Kf8 {[%clk 0:09:49.5]} 23. d7 {[%clk 0:17:13.8]} 23... Re7 {[%clk 0:09:37.2]} 24. f4 {[%clk 0:17:13.9]} 24... Qxg3+ {[%clk 0:09:00.2]} 25. Kf1 {[%clk 0:17:05.7]} 25... Qg2# {[%clk 0:08:59.6]} 0-1

[Event "Live Chess"]
[Site "Chess.com"]
[Date "2021.02.06"]
[Round "2"]
[White "lerdog"]
[Black "SubtleGalaxy99"]
[Result "1-0"]
[CurrentPosition "4r3/7Q/2p3p1/7k/3P4/2N2N1P/PP3PP1/R4RK1 b - -"]
[Timezone "UTC"]
[ECO "C20"]
[ECOUrl "https://www.chess.com/openings/Bishops-Opening-Boi-Variation"]
[UTCDate "2021.02.06"]
[UTCTime "19:01:29"]
[WhiteElo "1088"]
[BlackElo "932"]
[TimeControl "1200+10"]
[Termination "lerdog won by checkmate"]
[StartTime "19:01:29"]
[EndDate "2021.02.06"]
[EndTime "19:08:07"]
[Link "https://www.chess.com/live/game/6472133003"]

1. e4 {[%clk 0:20:10]} 1... e5 {[%clk 0:20:02]} 2. Bc4 {[%clk 0:20:16.5]} 2... Bc5 {[%clk 0:20:09.6]} 3. Qh5 {[%clk 0:20:19.8]} 3... Qf6 {[%clk 0:20:14.9]} 4. Nf3 {[%clk 0:20:18.3]} 4... g6 {[%clk 0:20:22.5]} 5. Qxe5+ {[%clk 0:19:51.5]} 5... Be7 {[%clk 0:20:15.3]} 6. Qxc7 {[%clk 0:19:48]} 6... Bd8 {[%clk 0:20:16.5]} 7. Qxc8 {[%clk 0:19:52.8]} 7... Ke7 {[%clk 0:20:16.7]} 8. Qxb7 {[%clk 0:19:52.3]} 8... Qc6 {[%clk 0:20:17.3]} 9. Bd5 {[%clk 0:19:49.1]} 9... Qxc2 {[%clk 0:20:13.2]} 10. O-O {[%clk 0:19:51.9]} 10... Bc7 {[%clk 0:20:00.8]} 11. Qxa8 {[%clk 0:19:54.1]} 11... Qc5 {[%clk 0:20:03]} 12. d4 {[%clk 0:19:33.2]} 12... Qd6 {[%clk 0:20:09.8]} 13. Qxa7 {[%clk 0:19:27.7]} 13... Nc6 {[%clk 0:20:15.2]} 14. Bxc6 {[%clk 0:19:30.4]} 14... dxc6 {[%clk 0:20:23.2]} 15. Nc3 {[%clk 0:19:36.9]} 15... Nf6 {[%clk 0:20:14.6]} 16. e5 {[%clk 0:19:44.4]} 16... Qd8 {[%clk 0:20:03.6]} 17. exf6+ {[%clk 0:19:51.3]} 17... Kxf6 {[%clk 0:20:11.5]} 18. Bg5+ {[%clk 0:19:56]} 18... Kf5 {[%clk 0:20:17.1]} 19. Bxd8 {[%clk 0:20:02.7]} 19... Rxd8 {[%clk 0:20:19]} 20. Qxc7 {[%clk 0:20:09.8]} 20... Re8 {[%clk 0:20:22.3]} 21. Qxf7+ {[%clk 0:20:17]} 21... Kg4 {[%clk 0:20:29.6]} 22. h3+ {[%clk 0:20:20.8]} 22... Kh5 {[%clk 0:20:36.4]} 23. Qxh7# {[%clk 0:20:27.6]} 1-0